{"text_format":"3","workbook":"xlsx","n_sheets":4,"sheets":["Riepilogo budget mensile","Entrate","Spese per personale","Costi di gestione"],"not_rendered":{"charts":1,"defined_names":14},"read":"whole","date_system":"1900"}

{"sheet":"Riepilogo budget mensile","index":0,"n_rows":17,"n_cols":5,"rows_kept":17,"merged":[[0,1,0,3],[1,1,1,3],[1,4,1,5]]}
[null,"NOME SOCIETÀ"]
[null,"BUDGET MENSILE",null,null,"Data"]
[]
[null,"TOTALI BUDGET","IMPORTI STIMATI","IMPORTI EFFETTIVI","DIFFERENZA"]
[null,"Entrate",{"$f":"Entrate[[#Totals],[IMPORTI STIMATI]]","v":{"v":63300,"d":"63,300.00"}},{"$f":"Entrate[[#Totals],[IMPORTI EFFETTIVI]]","v":{"v":57450,"d":"57,450.00"}},{"$f":"Totali[[#This Row],[IMPORTI EFFETTIVI]]-Totali[[#This Row],[IMPORTI STIMATI]]","v":{"v":-5850,"d":"-5,850.00 "}}]
[null,"Uscite",{"$f":"CostiGestione[[#Totals],[IMPORTI STIMATI]]+SpesePersonale[[#Totals],[IMPORTI STIMATI]]","v":{"v":54500,"d":"54,500.00"}},{"$f":"CostiGestione[[#Totals],[IMPORTI EFFETTIVI]]+SpesePersonale[[#Totals],[IMPORTI EFFETTIVI]]","v":{"v":49630,"d":"49,630.00"}},{"$f":"Totali[[#This Row],[IMPORTI STIMATI]]-Totali[[#This Row],[IMPORTI EFFETTIVI]]","v":{"v":4870,"d":"4,870.00"}}]
[null,"Saldo (entrate meno uscite)",{"$f":"C5-C6","v":{"v":8800,"d":"8,800.00"}},{"$f":"D5-D6","v":{"v":7820,"d":"7,820.00"}},{"$f":"Totali[[#Totals],[IMPORTI EFFETTIVI]]-Totali[[#Totals],[IMPORTI STIMATI]]","v":{"v":-980,"d":"-980.00 "}}]
[]
[]
[null,"QUALI SONO LE 5 SPESE OPERATIVE PIÙ ELEVATE?"]
[null,"USCITE","IMPORTO","% USCITE","RIDUZIONE DEL 15%"]
[null,{"$f":"INDEX(CostiGestione[],MATCH(Primi5Costi[[#This Row],[IMPORTO]],CostiGestione[PRIMI 5 IMPORTI],0),1)","v":"Manutenzione e riparazioni"},{"$f":"LARGE(CostiGestione[PRIMI 5 IMPORTI],1)","v":{"v":4600.000014,"d":"4,600.00"}},{"$f":"Primi5Costi[[#This Row],[IMPORTO]]/$D$6","v":{"v":0.09268587576062866,"d":"9.3%"}},{"$f":"Primi5Costi[[#This Row],[IMPORTO]]*0.15","v":{"v":690.0000021,"d":"690.00"}}]
[null,{"$f":"INDEX(CostiGestione[],MATCH(Primi5Costi[[#This Row],[IMPORTO]],CostiGestione[PRIMI 5 IMPORTI],0),1)","v":"Cancelleria"},{"$f":"LARGE(CostiGestione[PRIMI 5 IMPORTI],2)","v":{"v":4500.00002,"d":"4,500.00"}},{"$f":"Primi5Costi[[#This Row],[IMPORTO]]/$D$6","v":{"v":0.09067096554503326,"d":"9.1%"}},{"$f":"Primi5Costi[[#This Row],[IMPORTO]]*0.15","v":{"v":675.000003,"d":"675.00"}}]
[null,{"$f":"INDEX(CostiGestione[],MATCH(Primi5Costi[[#This Row],[IMPORTO]],CostiGestione[PRIMI 5 IMPORTI],0),1)","v":"Affitto o mutuo"},{"$f":"LARGE(CostiGestione[PRIMI 5 IMPORTI],3)","v":{"v":4500.000017,"d":"4,500.00"}},{"$f":"Primi5Costi[[#This Row],[IMPORTO]]/$D$6","v":{"v":0.09067096548458595,"d":"9.1%"}},{"$f":"Primi5Costi[[#This Row],[IMPORTO]]*0.15","v":{"v":675.00000255,"d":"675.00"}}]
[null,{"$f":"INDEX(CostiGestione[],MATCH(Primi5Costi[[#This Row],[IMPORTO]],CostiGestione[PRIMI 5 IMPORTI],0),1)","v":"Imposte"},{"$f":"LARGE(CostiGestione[PRIMI 5 IMPORTI],4)","v":{"v":3200.000021,"d":"3,200.00"}},{"$f":"Primi5Costi[[#This Row],[IMPORTO]]/$D$6","v":{"v":0.06447713119081201,"d":"6.4%"}},{"$f":"Primi5Costi[[#This Row],[IMPORTO]]*0.15","v":{"v":480.00000314999994,"d":"480.00"}}]
[null,{"$f":"INDEX(CostiGestione[],MATCH(Primi5Costi[[#This Row],[IMPORTO]],CostiGestione[PRIMI 5 IMPORTI],0),1)","v":"Pubblicità"},{"$f":"LARGE(CostiGestione[PRIMI 5 IMPORTI],5)","v":{"v":2500.000005,"d":"2,500.00"}},{"$f":"Primi5Costi[[#This Row],[IMPORTO]]/$D$6","v":{"v":0.05037275851299617,"d":"5.0%"}},{"$f":"Primi5Costi[[#This Row],[IMPORTO]]*0.15","v":{"v":375.00000074999997,"d":"375.00"}}]
[null,"Totale",{"$f":"SUBTOTAL(109,Primi5Costi[IMPORTO])","v":{"v":19300.000077000004,"d":"19,300.00"}},{"$f":"SUBTOTAL(109,Primi5Costi[% USCITE])","v":{"v":0.388877696494056,"d":"38.9%"}},{"$f":"SUBTOTAL(109,Primi5Costi[RIDUZIONE DEL 15%])","v":{"v":2895.0000115499997,"d":"2,895.00"}}]

{"sheet":"Entrate","index":1,"n_rows":8,"n_cols":6,"rows_kept":8}
[null,{"$f":"NOME_SOCIETÀ","v":"NOME SOCIETÀ"}]
[null,{"$f":"Titolo_BUDGET","v":"BUDGET MENSILE"}]
[]
[null,"ENTRATE","IMPORTI STIMATI","IMPORTI EFFETTIVI","PRIMI 5 IMPORTI","DIFFERENZA"]
[null,"Vendite nette",{"v":60000,"d":"60,000.00"},{"v":54000,"d":"54,000.00"},{"$f":"Entrate[[#This Row],[IMPORTI EFFETTIVI]]+(10^-6)*ROW(Entrate[[#This Row],[IMPORTI EFFETTIVI]])","v":{"v":54000.000005,"d":"54,000.00"}},{"$f":"Entrate[[#This Row],[IMPORTI EFFETTIVI]]-Entrate[[#This Row],[IMPORTI STIMATI]]","v":{"v":-6000,"d":"-6,000.00 "}}]
[null,"Interessi attivi",{"v":3000,"d":"3,000.00"},{"v":3000,"d":"3,000.00"},{"$f":"Entrate[[#This Row],[IMPORTI EFFETTIVI]]+(10^-6)*ROW(Entrate[[#This Row],[IMPORTI EFFETTIVI]])","v":{"v":3000.000006,"d":"3,000.00"}},{"$f":"Entrate[[#This Row],[IMPORTI EFFETTIVI]]-Entrate[[#This Row],[IMPORTI STIMATI]]","v":{"v":0,"d":"0.00"}}]
[null,"Vendite di beni (profitti/perdite)",{"v":300,"d":"300.00"},{"v":450,"d":"450.00"},{"$f":"Entrate[[#This Row],[IMPORTI EFFETTIVI]]+(10^-6)*ROW(Entrate[[#This Row],[IMPORTI EFFETTIVI]])","v":{"v":450.000007,"d":"450.00"}},{"$f":"Entrate[[#This Row],[IMPORTI EFFETTIVI]]-Entrate[[#This Row],[IMPORTI STIMATI]]","v":{"v":150,"d":"150.00"}}]
[null,"Totale entrate",{"$f":"SUBTOTAL(109,Entrate[IMPORTI STIMATI])","v":{"v":63300,"d":"63,300.00"}},{"$f":"SUBTOTAL(109,Entrate[IMPORTI EFFETTIVI])","v":{"v":57450,"d":"57,450.00"}},null,{"$f":"SUBTOTAL(109,Entrate[DIFFERENZA])","v":{"v":-5850,"d":"-5,850.00 "}}]

{"sheet":"Spese per personale","index":2,"n_rows":8,"n_cols":6,"rows_kept":8}
[null,{"$f":"NOME_SOCIETÀ","v":"NOME SOCIETÀ"}]
[null,{"$f":"Titolo_BUDGET","v":"BUDGET MENSILE"}]
[]
[null,"SPESE PER PERSONALE","IMPORTI STIMATI","IMPORTI EFFETTIVI","PRIMI 5 IMPORTI","DIFFERENZA"]
[null,"Stipendi",{"v":9500,"d":"9,500.00"},{"v":9600,"d":"9,600.00"},{"$f":"SpesePersonale[[#This Row],[IMPORTI EFFETTIVI]]+(10^-6)*ROW(SpesePersonale[[#This Row],[IMPORTI EFFETTIVI]])","v":{"v":9600.000005,"d":"9,600.00"}},{"$f":"SpesePersonale[[#This Row],[IMPORTI STIMATI]]-SpesePersonale[[#This Row],[IMPORTI EFFETTIVI]]","v":{"v":-100,"d":"-100.00 "}}]
[null,"Benefit dipendenti",{"v":4000,"d":"4,000.00"},{"v":0,"d":"0.00"},{"$f":"SpesePersonale[[#This Row],[IMPORTI EFFETTIVI]]+(10^-6)*ROW(SpesePersonale[[#This Row],[IMPORTI EFFETTIVI]])","v":{"v":6e-06,"d":"0.00"}},{"$f":"SpesePersonale[[#This Row],[IMPORTI STIMATI]]-SpesePersonale[[#This Row],[IMPORTI EFFETTIVI]]","v":{"v":4000,"d":"4,000.00"}}]
[null,"Provvigioni",{"v":5000,"d":"5,000.00"},{"v":4500,"d":"4,500.00"},{"$f":"SpesePersonale[[#This Row],[IMPORTI EFFETTIVI]]+(10^-6)*ROW(SpesePersonale[[#This Row],[IMPORTI EFFETTIVI]])","v":{"v":4500.000007,"d":"4,500.00"}},{"$f":"SpesePersonale[[#This Row],[IMPORTI STIMATI]]-SpesePersonale[[#This Row],[IMPORTI EFFETTIVI]]","v":{"v":500,"d":"500.00"}}]
[null,"Totale spese per personale",{"$f":"SUBTOTAL(109,SpesePersonale[IMPORTI STIMATI])","v":{"v":18500,"d":"18,500.00"}},{"$f":"SUBTOTAL(109,SpesePersonale[IMPORTI EFFETTIVI])","v":{"v":14100,"d":"14,100.00"}},null,{"$f":"SUBTOTAL(109,SpesePersonale[DIFFERENZA])","v":{"v":4400,"d":"4,400.00"}}]

{"sheet":"Costi di gestione","index":3,"n_rows":25,"n_cols":6,"rows_kept":25}
[null,{"$f":"NOME_SOCIETÀ","v":"NOME SOCIETÀ"}]
[null,{"$f":"Titolo_BUDGET","v":"BUDGET MENSILE"}]
[]
[null,"COSTI DI GESTIONE","IMPORTI STIMATI","IMPORTI EFFETTIVI","PRIMI 5 IMPORTI","DIFFERENZA"]
[null,"Pubblicità",{"v":3000,"d":"3,000.00"},{"v":2500,"d":"2,500.00"},{"$f":"CostiGestione[[#This Row],[IMPORTI EFFETTIVI]]+(10^-6)*ROW(CostiGestione[[#This Row],[IMPORTI EFFETTIVI]])","v":{"v":2500.000005,"d":"2,500.00"}},{"$f":"CostiGestione[[#This Row],[IMPORTI STIMATI]]-CostiGestione[[#This Row],[IMPORTI EFFETTIVI]]","v":{"v":500,"d":"500.00"}}]
[null,"Crediti inesigibili",{"v":2000,"d":"2,000.00"},{"v":2000,"d":"2,000.00"},{"$f":"CostiGestione[[#This Row],[IMPORTI EFFETTIVI]]+(10^-6)*ROW(CostiGestione[[#This Row],[IMPORTI EFFETTIVI]])","v":{"v":2000.000006,"d":"2,000.00"}},{"$f":"CostiGestione[[#This Row],[IMPORTI STIMATI]]-CostiGestione[[#This Row],[IMPORTI EFFETTIVI]]","v":{"v":0,"d":"0.00"}}]
[null,"Sconti di cassa",{"v":1500,"d":"1,500.00"},{"v":2175,"d":"2,175.00"},{"$f":"CostiGestione[[#This Row],[IMPORTI EFFETTIVI]]+(10^-6)*ROW(CostiGestione[[#This Row],[IMPORTI EFFETTIVI]])","v":{"v":2175.000007,"d":"2,175.00"}},{"$f":"CostiGestione[[#This Row],[IMPORTI STIMATI]]-CostiGestione[[#This Row],[IMPORTI EFFETTIVI]]","v":{"v":-675,"d":"-675.00 "}}]
[null,"Costi di consegna",{"v":2000,"d":"2,000.00"},{"v":1500,"d":"1,500.00"},{"$f":"CostiGestione[[#This Row],[IMPORTI EFFETTIVI]]+(10^-6)*ROW(CostiGestione[[#This Row],[IMPORTI EFFETTIVI]])","v":{"v":1500.000008,"d":"1,500.00"}},{"$f":"CostiGestione[[#This Row],[IMPORTI STIMATI]]-CostiGestione[[#This Row],[IMPORTI EFFETTIVI]]","v":{"v":500,"d":"500.00"}}]
[null,"Ammortamento",{"v":1000,"d":"1,000.00"},{"v":1000,"d":"1,000.00"},{"$f":"CostiGestione[[#This Row],[IMPORTI EFFETTIVI]]+(10^-6)*ROW(CostiGestione[[#This Row],[IMPORTI EFFETTIVI]])","v":{"v":1000.000009,"d":"1,000.00"}},{"$f":"CostiGestione[[#This Row],[IMPORTI STIMATI]]-CostiGestione[[#This Row],[IMPORTI EFFETTIVI]]","v":{"v":0,"d":"0.00"}}]
[null,"Quote e abbonamenti",{"v":500,"d":"500.00"},{"v":525,"d":"525.00"},{"$f":"CostiGestione[[#This Row],[IMPORTI EFFETTIVI]]+(10^-6)*ROW(CostiGestione[[#This Row],[IMPORTI EFFETTIVI]])","v":{"v":525.00001,"d":"525.00"}},{"$f":"CostiGestione[[#This Row],[IMPORTI STIMATI]]-CostiGestione[[#This Row],[IMPORTI EFFETTIVI]]","v":{"v":-25,"d":"-25.00 "}}]
[null,"Assicurazione",{"v":1300,"d":"1,300.00"},{"v":1275,"d":"1,275.00"},{"$f":"CostiGestione[[#This Row],[IMPORTI EFFETTIVI]]+(10^-6)*ROW(CostiGestione[[#This Row],[IMPORTI EFFETTIVI]])","v":{"v":1275.000011,"d":"1,275.00"}},{"$f":"CostiGestione[[#This Row],[IMPORTI STIMATI]]-CostiGestione[[#This Row],[IMPORTI EFFETTIVI]]","v":{"v":25,"d":"25.00"}}]
[null,"Interessi",{"v":2000,"d":"2,000.00"},{"v":2200,"d":"2,200.00"},{"$f":"CostiGestione[[#This Row],[IMPORTI EFFETTIVI]]+(10^-6)*ROW(CostiGestione[[#This Row],[IMPORTI EFFETTIVI]])","v":{"v":2200.000012,"d":"2,200.00"}},{"$f":"CostiGestione[[#This Row],[IMPORTI STIMATI]]-CostiGestione[[#This Row],[IMPORTI EFFETTIVI]]","v":{"v":-200,"d":"-200.00 "}}]
[null,"Spese legali e di controllo",{"v":1000,"d":"1,000.00"},{"v":800,"d":"800.00"},{"$f":"CostiGestione[[#This Row],[IMPORTI EFFETTIVI]]+(10^-6)*ROW(CostiGestione[[#This Row],[IMPORTI EFFETTIVI]])","v":{"v":800.000013,"d":"800.00"}},{"$f":"CostiGestione[[#This Row],[IMPORTI STIMATI]]-CostiGestione[[#This Row],[IMPORTI EFFETTIVI]]","v":{"v":200,"d":"200.00"}}]
[null,"Manutenzione e riparazioni",{"v":4500,"d":"4,500.00"},{"v":4600,"d":"4,600.00"},{"$f":"CostiGestione[[#This Row],[IMPORTI EFFETTIVI]]+(10^-6)*ROW(CostiGestione[[#This Row],[IMPORTI EFFETTIVI]])","v":{"v":4600.000014,"d":"4,600.00"}},{"$f":"CostiGestione[[#This Row],[IMPORTI STIMATI]]-CostiGestione[[#This Row],[IMPORTI EFFETTIVI]]","v":{"v":-100,"d":"-100.00 "}}]
[null,"Forniture ufficio",{"v":800,"d":"800.00"},{"v":750,"d":"750.00"},{"$f":"CostiGestione[[#This Row],[IMPORTI EFFETTIVI]]+(10^-6)*ROW(CostiGestione[[#This Row],[IMPORTI EFFETTIVI]])","v":{"v":750.000015,"d":"750.00"}},{"$f":"CostiGestione[[#This Row],[IMPORTI STIMATI]]-CostiGestione[[#This Row],[IMPORTI EFFETTIVI]]","v":{"v":50,"d":"50.00"}}]
[null,"Affrancatura",{"v":400,"d":"400.00"},{"v":350,"d":"350.00"},{"$f":"CostiGestione[[#This Row],[IMPORTI EFFETTIVI]]+(10^-6)*ROW(CostiGestione[[#This Row],[IMPORTI EFFETTIVI]])","v":{"v":350.000016,"d":"350.00"}},{"$f":"CostiGestione[[#This Row],[IMPORTI STIMATI]]-CostiGestione[[#This Row],[IMPORTI EFFETTIVI]]","v":{"v":50,"d":"50.00"}}]
[null,"Affitto o mutuo",{"v":4100,"d":"4,100.00"},{"v":4500,"d":"4,500.00"},{"$f":"CostiGestione[[#This Row],[IMPORTI EFFETTIVI]]+(10^-6)*ROW(CostiGestione[[#This Row],[IMPORTI EFFETTIVI]])","v":{"v":4500.000017,"d":"4,500.00"}},{"$f":"CostiGestione[[#This Row],[IMPORTI STIMATI]]-CostiGestione[[#This Row],[IMPORTI EFFETTIVI]]","v":{"v":-400,"d":"-400.00 "}}]
[null,"Spese di vendita",{"v":350,"d":"350.00"},{"v":400,"d":"400.00"},{"$f":"CostiGestione[[#This Row],[IMPORTI EFFETTIVI]]+(10^-6)*ROW(CostiGestione[[#This Row],[IMPORTI EFFETTIVI]])","v":{"v":400.000018,"d":"400.00"}},{"$f":"CostiGestione[[#This Row],[IMPORTI STIMATI]]-CostiGestione[[#This Row],[IMPORTI EFFETTIVI]]","v":{"v":-50,"d":"-50.00 "}}]
[null,"Spedizione e stoccaggio",{"v":900,"d":"900.00"},{"v":840,"d":"840.00"},{"$f":"CostiGestione[[#This Row],[IMPORTI EFFETTIVI]]+(10^-6)*ROW(CostiGestione[[#This Row],[IMPORTI EFFETTIVI]])","v":{"v":840.000019,"d":"840.00"}},{"$f":"CostiGestione[[#This Row],[IMPORTI STIMATI]]-CostiGestione[[#This Row],[IMPORTI EFFETTIVI]]","v":{"v":60,"d":"60.00"}}]
[null,"Cancelleria",{"v":5000,"d":"5,000.00"},{"v":4500,"d":"4,500.00"},{"$f":"CostiGestione[[#This Row],[IMPORTI EFFETTIVI]]+(10^-6)*ROW(CostiGestione[[#This Row],[IMPORTI EFFETTIVI]])","v":{"v":4500.00002,"d":"4,500.00"}},{"$f":"CostiGestione[[#This Row],[IMPORTI STIMATI]]-CostiGestione[[#This Row],[IMPORTI EFFETTIVI]]","v":{"v":500,"d":"500.00"}}]
[null,"Imposte",{"v":3000,"d":"3,000.00"},{"v":3200,"d":"3,200.00"},{"$f":"CostiGestione[[#This Row],[IMPORTI EFFETTIVI]]+(10^-6)*ROW(CostiGestione[[#This Row],[IMPORTI EFFETTIVI]])","v":{"v":3200.000021,"d":"3,200.00"}},{"$f":"CostiGestione[[#This Row],[IMPORTI STIMATI]]-CostiGestione[[#This Row],[IMPORTI EFFETTIVI]]","v":{"v":-200,"d":"-200.00 "}}]
[null,"Telefono",{"v":250,"d":"250.00"},{"v":280,"d":"280.00"},{"$f":"CostiGestione[[#This Row],[IMPORTI EFFETTIVI]]+(10^-6)*ROW(CostiGestione[[#This Row],[IMPORTI EFFETTIVI]])","v":{"v":280.000022,"d":"280.00"}},{"$f":"CostiGestione[[#This Row],[IMPORTI STIMATI]]-CostiGestione[[#This Row],[IMPORTI EFFETTIVI]]","v":{"v":-30,"d":"-30.00 "}}]
[null,"Utenze",{"v":1400,"d":"1,400.00"},{"v":1385,"d":"1,385.00"},{"$f":"CostiGestione[[#This Row],[IMPORTI EFFETTIVI]]+(10^-6)*ROW(CostiGestione[[#This Row],[IMPORTI EFFETTIVI]])","v":{"v":1385.000023,"d":"1,385.00"}},{"$f":"CostiGestione[[#This Row],[IMPORTI STIMATI]]-CostiGestione[[#This Row],[IMPORTI EFFETTIVI]]","v":{"v":15,"d":"15.00"}}]
[null,"Altro",{"v":1000,"d":"1,000.00"},{"v":750,"d":"750.00"},{"$f":"CostiGestione[[#This Row],[IMPORTI EFFETTIVI]]+(10^-6)*ROW(CostiGestione[[#This Row],[IMPORTI EFFETTIVI]])","v":{"v":750.000024,"d":"750.00"}},{"$f":"CostiGestione[[#This Row],[IMPORTI STIMATI]]-CostiGestione[[#This Row],[IMPORTI EFFETTIVI]]","v":{"v":250,"d":"250.00"}}]
[null,"Totale costi di gestione",{"$f":"SUBTOTAL(109,CostiGestione[IMPORTI STIMATI])","v":{"v":36000,"d":"36,000.00"}},{"$f":"SUBTOTAL(109,CostiGestione[IMPORTI EFFETTIVI])","v":{"v":35530,"d":"35,530.00"}},null,{"$f":"SUBTOTAL(109,CostiGestione[DIFFERENZA])","v":{"v":470,"d":"470.00"}}]